fUST/lending_fUST_20260522
["ID","MTS","AMOUNT","RATE_DAILY","PERIOD"]
[422788087,1779393039000,-160.0,0.00012382,2]
[422788063,1779393039000,-152.0,0.00012309,7]
[422788061,1779393039000,-200.0,0.00012294,2]
[422788064,1779393039000,-1188.08,0.00012329,2]
[422788066,1779393039000,-825.06,0.00012329,2]
[422788123,1779393039000,-2599.0299115,0.00012787,2]
[422788065,1779393039000,-990.07,0.00012329,2]
[422788067,1779393039000,-687.55,0.00012329,2]
[422788069,1779393039000,-477.46,0.00012329,2]
[422788068,1779393039000,-572.95,0.00012329,2]
[422788071,1779393039000,-397.89,0.00012329,2]
[422788072,1779393039000,-265.26,0.00012329,2]
[422788077,1779393039000,-160.0,0.00012355,2]
[422788070,1779393039000,-397.89,0.00012329,2]
[422788090,1779393039000,-151.6,0.000124,2]
[422788073,1779393039000,-221.05,0.00012329,2]
[422788076,1779393039000,-767.55,0.00012329,2]
[422788075,1779393039000,-153.5,0.00012329,2]
[422788074,1779393039000,-184.2,0.00012329,2]
[422788079,1779393039000,-1059.223092,0.00012355,2]
[422788080,1779393039000,-160.0,0.00012355,2]
[422788082,1779393039000,-1206.927286,0.00012355,2]
[422788083,1779393039000,-160.0,0.00012355,2]
[422788081,1779393039000,-683.463643,0.00012355,2]
[422788085,1779393039000,-345.886338,0.00012355,2]
[422788084,1779393039000,-252.943169,0.00012355,2]
[422788086,1779393039000,-160.0,0.00012355,2]
[422788088,1779393039000,-220.219512,0.00012382,2]
[422788089,1779393039000,-280.439024,0.00012382,2]
[422788078,1779393039000,-609.611546,0.00012355,2]
[422788122,1779393039000,-607.18001638,0.00012787,2]
[422788113,1779393039000,-188.0,0.00012603,3]
[422788126,1779393039000,-151.6,0.000128,2]
[422788160,1779393039000,-823.0,0.00012893,2]
[422788159,1779393039000,-823.0,0.00012893,2]
[422788161,1779393039000,-823.0,0.00012893,2]
[422788164,1779393039000,-823.0,0.00012893,2]
[422788162,1779393039000,-823.0,0.00012893,2]
[422788166,1779393039000,-823.0,0.00012893,2]
[422788165,1779393039000,-823.0,0.00012893,2]
[422788163,1779393039000,-823.0,0.00012893,2]
[422788167,1779393039000,-823.0,0.00012893,2]
[422788168,1779393039000,-823.0,0.00012893,2]
[422788170,1779393039000,-823.0,0.00012893,2]
[422788171,1779393039000,-823.0,0.00012893,2]
[422788169,1779393039000,-823.0,0.00012893,2]
[422788158,1779393039000,-823.0,0.00012893,2]
[422788173,1779393039000,-823.0,0.00012893,2]
[422788175,1779393039000,-823.0,0.00012893,2]
[422788174,1779393039000,-823.0,0.00012893,2]
[422788176,1779393039000,-823.0,0.00012893,2]
[422788178,1779393039000,-823.0,0.00012893,2]
[422788177,1779393039000,-823.0,0.00012893,2]
[422788179,1779393039000,-823.0,0.00012893,2]
[422788180,1779393039000,-823.0,0.00012893,2]
[422788181,1779393039000,-823.0,0.00012893,2]
[422788182,1779393039000,-823.0,0.00012893,2]
[422788184,1779393039000,-823.0,0.00012893,2]
[422788183,1779393039000,-823.0,0.00012893,2]
[422788185,1779393039000,-823.0,0.00012893,2]
[422788124,1779393039000,-477.839071,0.00012795,2]
[422788172,1779393039000,-823.0,0.00012893,2]
[422788157,1779393039000,-823.0,0.00012893,2]
[422788186,1779393039000,-823.0,0.00012893,2]
[422788155,1779393039000,-823.0,0.00012893,2]
[422788156,1779393039000,-823.0,0.00012893,2]
[422788127,1779393039000,-32663.74200036,0.000128,2]
[422788128,1779393039000,-151.0,0.000128,2]
[422788129,1779393039000,-2599.0299115,0.00012808,2]
[422788130,1779393039000,-156.10915148,0.00012811,30]
[422788131,1779393039000,-406.59960948,0.00012824,2]
[422788132,1779393039000,-2599.0299115,0.0001283,2]
[422788133,1779393039000,-443.0,0.00012841,2]
[422788134,1779393039000,-185.0,0.00012841,2]
[422788136,1779393039000,-468.931958,0.00012859,2]
[422788135,1779393039000,-2599.0299115,0.00012852,2]
[422788138,1779393039000,-194.571668,0.00012859,2]
[422788143,1779393039000,-3511.52,0.00012877,2]
[422788141,1779393039000,-2599.0299115,0.00012874,2]
[422788125,1779393039000,-170.476381,0.00012795,2]
[422788142,1779393039000,-1389.74,0.00012876,2]
[422788153,1779393039000,-823.0,0.00012893,2]
[422788154,1779393039000,-823.0,0.00012893,2]
[422788152,1779393039000,-823.0,0.00012893,2]
[422788148,1779393039000,-823.0,0.00012893,2]
[422788137,1779393039000,-525.741264,0.00012859,2]
[422788150,1779393039000,-823.0,0.00012893,2]
[422788151,1779393039000,-823.0,0.00012893,2]
[422788147,1779393039000,-823.0,0.00012893,2]
[422788145,1779393039000,-169.399624,0.00012888,2]
[422788146,1779393039000,-823.0,0.00012893,2]
[422788144,1779393039000,-193.561898,0.00012888,2]
[422788139,1779393039000,-406.59960948,0.00012861,2]
[422788140,1779393039000,-607.18001638,0.00012863,2]
[422788149,1779393039000,-823.0,0.00012893,2]
[422788231,1779393040000,-6252.092849,0.00013,2]
[422788232,1779393040000,-6252.092849,0.00013,2]
[422788230,1779393040000,-6252.092849,0.00013,2]
[422788228,1779393040000,-3311.67974032,0.00013,2]
[422788229,1779393040000,-151.0,0.00013,2]
[422788217,1779393040000,-226.91767483,0.00012983,7]
[422788226,1779393040000,-100615.89938272,0.00013,2]
[422788248,1779393040000,-200.0,0.000131,2]
[422788224,1779393040000,-1008.28300125,0.00013,2]
[422788223,1779393040000,-1000.0,0.00013,2]
[422788222,1779393040000,-324817.42473519,0.00013,2]
[422788227,1779393040000,-650.27254401,0.00013,2]
[422788234,1779393040000,-2599.0299115,0.00013006,7]
[422788239,1779393040000,-2599.0299115,0.00013028,7]
[422788235,1779393040000,-406.59960948,0.00013009,7]
[422788236,1779393040000,-852.08,0.00013011,2]
[422788237,1779393040000,-607.18001638,0.00013017,7]
[422788238,1779393040000,-456.6225983,0.00013018,2]
[422788240,1779393040000,-406.59960948,0.00013046,7]
[422788246,1779393040000,-607.18001638,0.00013094,7]
[422788242,1779393040000,-200.0,0.00013054,2]
[422788247,1779393040000,-2599.0299115,0.00013094,7]
[422788243,1779393040000,-714.468897,0.0001306,2]
[422788245,1779393040000,-406.59960948,0.00013084,7]
[422788241,1779393040000,-2599.0299115,0.0001305,7]
[422788244,1779393040000,-2599.0299115,0.00013072,7]
[422788219,1779393040000,-2599.0299115,0.00012984,7]
[422788233,1779393040000,-6252.092849,0.00013,2]
[422788220,1779393040000,-631.996725,0.00012995,2]
[422788205,1779393040000,-151.51,0.000129,2]
[422788215,1779393040000,-406.59960948,0.00012972,7]
[422788192,1779393040000,-823.0,0.00012893,2]
[422788191,1779393040000,-856.0,0.00012893,2]
[422788188,1779393040000,-823.0,0.00012893,2]
[422788187,1779393040000,-823.0,0.00012893,2]
[422788193,1779393040000,-823.0,0.00012893,2]
[422788189,1779393040000,-823.0,0.00012893,2]
[422788190,1779393040000,-823.0,0.00012893,2]
[422788194,1779393040000,-826.0,0.00012893,2]
[422788199,1779393040000,-6252.092849,0.00012896,2]
[422788196,1779393040000,-823.0,0.00012893,2]
[422788198,1779393040000,-6252.092849,0.00012896,2]
[422788201,1779393040000,-6252.092849,0.00012896,2]
[422788202,1779393040000,-2599.0299115,0.00012896,7]
[422788203,1779393040000,-406.59960948,0.00012898,7]
[422788200,1779393040000,-6252.092849,0.00012896,2]
[422788204,1779393040000,-905.7,0.000129,2]
[422788207,1779393040000,-979.69359085,0.00012905,2]
[422788208,1779393040000,-2599.0299115,0.00012918,7]
[422788209,1779393040000,-406.59960948,0.00012935,7]
[422788206,1779393040000,-9346.5847458,0.000129,2]
[422788210,1779393040000,-607.18001638,0.0001294,7]
[422788212,1779393040000,-168.914437,0.00012952,2]
[422788211,1779393040000,-2599.0299115,0.0001294,7]
[422788213,1779393040000,-517.022335,0.00012952,2]
[422788216,1779393040000,-175.76707408,0.00012983,7]
[422788214,1779393040000,-2599.0299115,0.00012962,7]
[422788221,1779393040000,-204.43061796,0.00012999,2]
[422788218,1779393040000,-435.28219596,0.00012983,7]
[422788250,1779393040000,-2599.0299115,0.00013116,14]
[422788225,1779393040000,-151.54,0.00013,2]
[422788253,1779393040000,-1389.74,0.0001315,2]
[422788283,1779393040000,-406.59960948,0.00013306,14]
[422788286,1779393040000,-520.96891061,0.00013318,2]
[422788285,1779393040000,-576.19687651,0.00013318,2]
[422788287,1779393040000,-607.18001638,0.00013325,14]
[422788289,1779393040000,-2599.0299115,0.00013336,30]
[422788288,1779393040000,-545.98269428,0.00013331,2]
[422788290,1779393040000,-679.63678808,0.00013342,2]
[422788292,1779393040000,-6252.092849,0.00013342,2]
[422788291,1779393040000,-6252.092849,0.00013342,2]
[422788295,1779393040000,-406.59960948,0.00013343,30]
[422788293,1779393040000,-6252.092849,0.00013342,2]
[422788297,1779393040000,-2599.0299115,0.00013358,30]
[422788296,1779393040000,-590.94587517,0.00013348,2]
[422788284,1779393040000,-2599.0299115,0.00013314,14]
[422788294,1779393040000,-6252.092849,0.00013342,2]
[422788299,1779393040000,-269.8283023,0.00013365,14]
[422788300,1779393040000,-175.76707408,0.00013365,14]
[422788301,1779393040000,-226.91767483,0.00013365,14]
[422788306,1779393040000,-1617.659,0.000134,2]
[422788305,1779393040000,-900.0,0.000134,3]
[422788302,1779393040000,-539.64120894,0.00013373,2]
[422788303,1779393040000,-2599.0299115,0.0001338,30]
[422788304,1779393040000,-406.59960948,0.00013381,30]
[422788308,1779393040000,-607.18001638,0.00013402,30]
[422788310,1779393040000,-406.59960948,0.00013418,30]
[422788307,1779393040000,-3311.67974032,0.000134,2]
[422788311,1779393040000,-2599.0299115,0.00013424,30]
[422788309,1779393040000,-2599.0299115,0.00013402,30]
[422788298,1779393040000,-364.55347742,0.00013365,14]
[422788280,1779393040000,-151.51,0.000133,2]
[422788249,1779393040000,-3311.67974032,0.000131,2]
[422788281,1779393040000,-3311.67974032,0.000133,2]
[422788279,1779393040000,-2599.0299115,0.00013292,14]
[422788251,1779393040000,-406.59960948,0.00013121,14]
[422788254,1779393040000,-3511.52,0.00013151,2]
[422788260,1779393040000,-559.47240209,0.00013183,2]
[422788259,1779393040000,-2599.0299115,0.00013182,14]
[422788258,1779393040000,-607.18001638,0.00013171,14]
[422788255,1779393040000,-406.59960948,0.00013158,14]
[422788256,1779393040000,-539.64120894,0.0001316,2]
[422788257,1779393040000,-2599.0299115,0.0001316,14]
[422788261,1779393040000,-559.47240209,0.00013188,2]
[422788262,1779393040000,-637.25144738,0.00013193,2]
[422788263,1779393040000,-406.59960948,0.00013195,14]
[422788265,1779393040000,-2599.0299115,0.00013204,14]
[422788267,1779393040000,-721.06460746,0.00013224,2]
[422788252,1779393040000,-2599.0299115,0.00013138,14]
[422788264,1779393040000,-151.6,0.000132,2]
[422788266,1779393040000,-539.64120894,0.00013224,2]
[422788277,1779393040000,-349.48525444,0.00013275,2]
[422788278,1779393040000,-852.08,0.00013285,2]
[422788275,1779393040000,-2599.0299115,0.0001327,14]
[422788276,1779393040000,-5535.86434956,0.00013273,2]
[422788271,1779393040000,-607.18001638,0.00013248,14]
[422788282,1779393040000,-6585.67703108,0.00013301,2]
[422788272,1779393040000,-2599.0299115,0.00013248,14]
[422788274,1779393040000,-406.59960948,0.00013269,14]
[422788270,1779393040000,-406.59960948,0.00013232,14]
[422788269,1779393040000,-7065.7319515,0.0001323,2]
[422788268,1779393040000,-2599.0299115,0.00013226,14]
[422788273,1779393040000,-576.19687651,0.00013266,2]
[422788358,1779393041000,-279.0,0.00013689,60]
[422788357,1779393041000,-186.0,0.00013689,60]
[422788356,1779393041000,-250.0,0.00013689,60]
[422788355,1779393041000,-250.0,0.00013689,60]
[422788352,1779393041000,-236.0,0.00013687,60]
[422788354,1779393041000,-115.47163758,0.00013689,60]
[422788350,1779393041000,-350.0,0.00013687,60]
[422788351,1779393041000,-350.0,0.00013687,60]
[422788349,1779393041000,-406.59960948,0.00013678,60]
[422788360,1779393041000,-1389.74,0.00013698,2]
[422788347,1779393041000,-2599.0299115,0.00013644,60]
[422788353,1779393041000,-2599.0299115,0.00013687,60]
[422788345,1779393041000,-313.0,0.00013633,60]
[422788367,1779393041000,-2653.79,0.00013698,2]
[422788362,1779393041000,-500.0,0.00013698,2]
[422788363,1779393041000,-500.0,0.00013698,2]
[422788366,1779393041000,-586.9397951,0.00013698,2]
[422788364,1779393041000,-500.0,0.00013698,2]
[422788365,1779393041000,-500.0,0.00013698,2]
[422788368,1779393041000,-2653.79,0.00013698,2]
[422788369,1779393041000,-2653.79,0.00013698,2]
[422788370,1779393041000,-2653.79,0.00013698,2]
[422788371,1779393041000,-2653.79,0.00013698,2]
[422788373,1779393041000,-2653.79,0.00013698,2]
[422788372,1779393041000,-2653.79,0.00013698,2]
[422788348,1779393041000,-2599.0299115,0.00013666,60]
[422788359,1779393041000,-1055.0,0.00013689,2]
[422788341,1779393041000,-2599.0299115,0.00013622,60]
[422788336,1779393041000,-2599.0299115,0.00013578,60]
[422788343,1779393041000,-400.0,0.00013633,60]
[422788315,1779393041000,-2599.0299115,0.00013446,30]
[422788323,1779393041000,-2599.0299115,0.00013512,30]
[422788324,1779393041000,-200.0,0.00013512,30]
[422788316,1779393041000,-151.0,0.00013446,2]
[422788317,1779393041000,-406.59960948,0.00013455,30]
[422788322,1779393041000,-3311.67974032,0.000135,2]
[422788320,1779393041000,-2599.0299115,0.0001349,30]
[422788318,1779393041000,-2599.0299115,0.00013468,30]
[422788319,1779393041000,-607.18001638,0.00013479,30]
[422788321,1779393041000,-406.59960948,0.00013492,30]
[422788325,1779393041000,-200.0,0.00013512,30]
[422788326,1779393041000,-200.0,0.00013512,30]
[422788327,1779393041000,-200.0,0.00013512,30]
[422788346,1779393041000,-406.59960948,0.00013641,60]
[422788332,1779393041000,-250.0,0.00013556,60]
[422788380,1779393041000,-2653.79,0.00013698,2]
[422788328,1779393041000,-238.0,0.00013512,30]
[422788335,1779393041000,-9346.58474579,0.00013565,2]
[422788333,1779393041000,-1586.93305631,0.00013556,60]
[422788330,1779393041000,-406.59960948,0.00013529,30]
[422788331,1779393041000,-2599.0299115,0.00013534,30]
[422788329,1779393041000,-251.0,0.00013512,30]
[422788337,1779393041000,-259.4405558,0.00013598,39]
[422788338,1779393041000,-2599.0299115,0.000136,60]
[422788339,1779393041000,-406.59960948,0.00013603,60]
[422788340,1779393041000,-168.237204,0.00013615,2]
[422788344,1779393041000,-400.0,0.00013633,60]
[422788342,1779393041000,-607.18001638,0.00013633,60]
[422788334,1779393041000,-852.08,0.00013559,2]
[422788381,1779393041000,-2653.79,0.00013698,2]
[422788361,1779393041000,-500.0,0.00013698,2]
[422788437,1779393041000,-500.0,0.00013698,2]
[422788410,1779393041000,-1112.66,0.00013698,2]
[422788412,1779393041000,-1112.66,0.00013698,2]
[422788413,1779393041000,-1112.66,0.00013698,2]
[422788414,1779393041000,-1112.66,0.00013698,2]
[422788421,1779393041000,-1112.66,0.00013698,2]
[422788423,1779393041000,-1112.66,0.00013698,2]
[422788422,1779393041000,-1112.66,0.00013698,2]
[422788418,1779393041000,-1112.66,0.00013698,2]
[422788416,1779393041000,-1112.66,0.00013698,2]
[422788417,1779393041000,-1112.66,0.00013698,2]
[422788420,1779393041000,-1112.66,0.00013698,2]
[422788419,1779393041000,-1112.66,0.00013698,2]
[422788415,1779393041000,-1112.66,0.00013698,2]
[422788411,1779393041000,-1112.66,0.00013698,2]
[422788424,1779393041000,-1112.66,0.00013698,2]
[422788426,1779393041000,-1112.66,0.00013698,2]
[422788428,1779393041000,-1112.8388113,0.00013698,2]
[422788430,1779393041000,-500.0,0.00013698,2]
[422788427,1779393041000,-1112.66,0.00013698,2]
[422788429,1779393041000,-500.0,0.00013698,2]
[422788436,1779393041000,-500.0,0.00013698,2]
[422788434,1779393041000,-500.0,0.00013698,2]
[422788431,1779393041000,-500.0,0.00013698,2]
[422788435,1779393041000,-500.0,0.00013698,2]
[422788433,1779393041000,-500.0,0.00013698,2]
[422788432,1779393041000,-500.0,0.00013698,2]
[422788438,1779393041000,-500.0,0.00013698,2]
[422788377,1779393041000,-2653.79,0.00013698,2]
[422788425,1779393041000,-1112.66,0.00013698,2]
[422788408,1779393041000,-1112.66,0.00013698,2]
[422788382,1779393041000,-2653.79,0.00013698,2]
[422788404,1779393041000,-282.82885005,0.00013698,2]
[422788407,1779393041000,-1112.66,0.00013698,2]
[422788378,1779393041000,-2653.79,0.00013698,2]
[422788374,1779393041000,-2653.79,0.00013698,2]
[422788375,1779393041000,-2653.79,0.00013698,2]
[422788379,1779393041000,-2653.79,0.00013698,2]
[422788384,1779393041000,-2653.79,0.00013698,2]
[422788385,1779393041000,-2653.79,0.00013698,2]
[422788383,1779393041000,-2653.79,0.00013698,2]
[422788386,1779393041000,-2653.79,0.00013698,2]
[422788389,1779393041000,-2653.79,0.00013698,2]
[422788388,1779393041000,-2653.79,0.00013698,2]
[422788395,1779393041000,-554.03281553,0.00013698,2]
[422788390,1779393041000,-2653.94266917,0.00013698,2]
[422788394,1779393041000,-500.0,0.00013698,2]
[422788376,1779393041000,-2653.79,0.00013698,2]
[422788393,1779393041000,-500.0,0.00013698,2]
[422788403,1779393041000,-500.0,0.00013698,2]
[422788405,1779393041000,-1112.66,0.00013698,2]
[422788402,1779393041000,-500.0,0.00013698,2]
[422788406,1779393041000,-1112.66,0.00013698,2]
[422788387,1779393041000,-2653.79,0.00013698,2]
[422788398,1779393041000,-500.0,0.00013698,2]
[422788401,1779393041000,-500.0,0.00013698,2]
[422788409,1779393041000,-1112.66,0.00013698,2]
[422788399,1779393041000,-500.0,0.00013698,2]
[422788397,1779393041000,-500.0,0.00013698,2]
[422788396,1779393041000,-500.0,0.00013698,2]
[422788392,1779393041000,-500.0,0.00013698,2]
[422788391,1779393041000,-500.0,0.00013698,2]
[422788400,1779393041000,-500.0,0.00013698,2]
[422788489,1779393042000,-974.95,0.00013698,2]
[422788488,1779393042000,-974.95,0.00013698,2]
[422788487,1779393042000,-974.95,0.00013698,2]
[422788495,1779393042000,-974.95,0.00013698,2]
[422788484,1779393042000,-974.95,0.00013698,2]
[422788470,1779393042000,-1250.14,0.00013698,2]
[422788485,1779393042000,-974.95,0.00013698,2]
[422788482,1779393042000,-974.95,0.00013698,2]
[422788472,1779393042000,-1250.30218118,0.00013698,2]
[422788474,1779393042000,-974.95,0.00013698,2]
[422788469,1779393042000,-1250.14,0.00013698,2]
[422788486,1779393042000,-974.95,0.00013698,2]
[422788492,1779393042000,-974.95,0.00013698,2]
[422788499,1779393042000,-974.95,0.00013698,2]
[422788490,1779393042000,-974.95,0.00013698,2]
[422788491,1779393042000,-974.95,0.00013698,2]
[422788494,1779393042000,-974.95,0.00013698,2]
[422788497,1779393042000,-974.95,0.00013698,2]
[422788496,1779393042000,-974.95,0.00013698,2]
[422788498,1779393042000,-974.95,0.00013698,2]
[422788501,1779393042000,-975.1016132,0.00013698,2]
[422788502,1779393042000,-6252.092849,0.00013698,2]
[422788500,1779393042000,-974.95,0.00013698,2]
[422788503,1779393042000,-6252.092849,0.00013698,2]
[422788504,1779393042000,-6252.092849,0.00013698,2]
[422788506,1779393042000,-665.34,0.00013698,2]
[422788477,1779393042000,-974.95,0.00013698,2]
[422788493,1779393042000,-974.95,0.00013698,2]
[422788467,1779393042000,-1250.14,0.00013698,2]
[422788453,1779393042000,-1250.14,0.00013698,2]
[422788478,1779393042000,-974.95,0.00013698,2]
[422788440,1779393042000,-500.0,0.00013698,2]
[422788439,1779393042000,-500.0,0.00013698,2]
[422788442,1779393042000,-500.0,0.00013698,2]
[422788446,1779393042000,-619.08289667,0.00013698,2]
[422788448,1779393042000,-1250.14,0.00013698,2]
[422788447,1779393042000,-1250.14,0.00013698,2]
[422788444,1779393042000,-500.0,0.00013698,2]
[422788445,1779393042000,-500.0,0.00013698,2]
[422788443,1779393042000,-500.0,0.00013698,2]
[422788441,1779393042000,-500.0,0.00013698,2]
[422788450,1779393042000,-1250.14,0.00013698,2]
[422788449,1779393042000,-1250.14,0.00013698,2]
[422788452,1779393042000,-1250.14,0.00013698,2]
[422788475,1779393042000,-974.95,0.00013698,2]
[422788462,1779393042000,-1250.14,0.00013698,2]
[422788456,1779393042000,-1250.14,0.00013698,2]
[422788455,1779393042000,-1250.14,0.00013698,2]
[422788458,1779393042000,-1250.14,0.00013698,2]
[422788459,1779393042000,-1250.14,0.00013698,2]
[422788454,1779393042000,-1250.14,0.00013698,2]
[422788461,1779393042000,-1250.14,0.00013698,2]
[422788457,1779393042000,-1250.14,0.00013698,2]
[422788460,1779393042000,-1250.14,0.00013698,2]
[422788463,1779393042000,-1250.14,0.00013698,2]
[422788465,1779393042000,-1250.14,0.00013698,2]
[422788466,1779393042000,-1250.14,0.00013698,2]
[422788480,1779393042000,-974.95,0.00013698,2]
[422788464,1779393042000,-1250.14,0.00013698,2]
[422788451,1779393042000,-1250.14,0.00013698,2]
[422788507,1779393042000,-665.34,0.00013698,2]
[422788509,1779393042000,-665.34,0.00013698,2]
[422788508,1779393042000,-665.34,0.00013698,2]
[422788550,1779393042000,-1000.0,0.00013698,2]
[422788555,1779393042000,-1000.0,0.00013698,2]
[422788557,1779393042000,-576.80266743,0.00013698,2]
[422788558,1779393042000,-1118.11,0.00013698,2]
[422788556,1779393042000,-884.71196719,0.00013698,2]
[422788553,1779393042000,-1000.0,0.00013698,2]
[422788554,1779393042000,-1000.0,0.00013698,2]
[422788560,1779393042000,-1118.11,0.00013698,2]
[422788559,1779393042000,-1118.11,0.00013698,2]
[422788562,1779393042000,-1118.11,0.00013698,2]
[422788572,1779393042000,-1118.11,0.00013698,2]
[422788561,1779393042000,-1118.11,0.00013698,2]
[422788563,1779393042000,-1118.11,0.00013698,2]
[422788552,1779393042000,-1000.0,0.00013698,2]
[422788570,1779393042000,-1118.11,0.00013698,2]
[422788564,1779393042000,-1118.11,0.00013698,2]
[422788567,1779393042000,-1118.11,0.00013698,2]
[422788566,1779393042000,-1118.11,0.00013698,2]
[422788569,1779393042000,-1118.11,0.00013698,2]
[422788568,1779393042000,-1118.11,0.00013698,2]
[422788573,1779393042000,-1118.11,0.00013698,2]
[422788575,1779393042000,-1118.11,0.00013698,2]
[422788574,1779393042000,-1118.11,0.00013698,2]
[422788577,1779393042000,-1118.11,0.00013698,2]
[422788579,1779393042000,-1118.11,0.00013698,2]
[422788578,1779393042000,-1118.11,0.00013698,2]
[422788576,1779393042000,-1118.11,0.00013698,2]
[422788505,1779393042000,-6252.092849,0.00013698,2]
[422788571,1779393042000,-1118.11,0.00013698,2]
[422788551,1779393042000,-1000.0,0.00013698,2]
[422788565,1779393042000,-1118.11,0.00013698,2]
[422788549,1779393042000,-1000.0,0.00013698,2]
[422788520,1779393042000,-665.34,0.00013698,2]
[422788547,1779393042000,-1000.0,0.00013698,2]
[422788510,1779393042000,-665.34,0.00013698,2]
[422788519,1779393042000,-665.34,0.00013698,2]
[422788521,1779393042000,-665.34,0.00013698,2]
[422788523,1779393042000,-665.34,0.00013698,2]
[422788522,1779393042000,-665.34,0.00013698,2]
[422788524,1779393042000,-665.34,0.00013698,2]
[422788512,1779393042000,-665.34,0.00013698,2]
[422788514,1779393042000,-665.34,0.00013698,2]
[422788516,1779393042000,-665.34,0.00013698,2]
[422788518,1779393042000,-665.34,0.00013698,2]
[422788525,1779393042000,-665.34,0.00013698,2]
[422788539,1779393042000,-665.39930719,0.00013698,2]
[422788515,1779393042000,-665.34,0.00013698,2]
[422788543,1779393042000,-1000.0,0.00013698,2]
[422788546,1779393042000,-1000.0,0.00013698,2]
[422788540,1779393042000,-500.0,0.00013698,2]
[422788545,1779393042000,-1000.0,0.00013698,2]
[422788537,1779393042000,-665.34,0.00013698,2]
[422788531,1779393042000,-665.34,0.00013698,2]
[422788532,1779393042000,-665.34,0.00013698,2]
[422788527,1779393042000,-665.34,0.00013698,2]
[422788548,1779393042000,-1000.0,0.00013698,2]
[422788535,1779393042000,-665.34,0.00013698,2]
[422788544,1779393042000,-1000.0,0.00013698,2]
[422788541,1779393042000,-500.0,0.00013698,2]
[422788542,1779393042000,-257.79493236,0.00013698,2]
[422788529,1779393042000,-665.34,0.00013698,2]
[422788624,1779393043000,-2617.24778942,0.00013699,2]
[422788629,1779393043000,-151.0,0.00013699,2]
[422788623,1779393043000,-180.02160259,0.00013699,2]
[422788627,1779393043000,-12879.8196802,0.00013699,2]
[422788626,1779393043000,-5990.5323325,0.00013699,2]
[422788621,1779393043000,-176.05,0.00013699,2]
[422788622,1779393043000,-3511.52,0.00013699,2]
[422788619,1779393043000,-160.0,0.00013699,2]
[422788613,1779393043000,-160.0,0.00013699,2]
[422788616,1779393043000,-160.0,0.00013699,2]
[422788614,1779393043000,-160.0,0.00013699,2]
[422788625,1779393043000,-371.20469458,0.00013699,2]
[422788620,1779393043000,-160.0,0.00013699,2]
[422788628,1779393043000,-151.0,0.00013699,2]
[422788640,1779393043000,-791.148913,0.00013699,2]
[422788631,1779393043000,-6349.595028,0.00013699,2]
[422788633,1779393043000,-791.148913,0.00013699,2]
[422788643,1779393043000,-791.148913,0.00013699,2]
[422788644,1779393043000,-791.148913,0.00013699,2]
[422788632,1779393043000,-791.148913,0.00013699,2]
[422788634,1779393043000,-791.148913,0.00013699,2]
[422788641,1779393043000,-791.148913,0.00013699,2]
[422788636,1779393043000,-791.148913,0.00013699,2]
[422788638,1779393043000,-791.148913,0.00013699,2]
[422788642,1779393043000,-791.148913,0.00013699,2]
[422788635,1779393043000,-791.148913,0.00013699,2]
[422788637,1779393043000,-791.148913,0.00013699,2]
[422788611,1779393043000,-160.0,0.00013699,2]
[422788630,1779393043000,-193.604384,0.00013699,2]
[422788609,1779393043000,-160.0,0.00013699,2]
[422788581,1779393043000,-1118.25230324,0.00013698,2]
[422788615,1779393043000,-160.0,0.00013699,2]
[422788580,1779393043000,-1118.11,0.00013698,2]
[422788639,1779393043000,-791.148913,0.00013699,2]